bitfinex-derivatives/quotes_ETHF0:USTF0_20240830
["timestamp","ask_amount","ask_price","bid_price","bid_amount"]
[1725020542216,4.07452,2515.2,2515.1,0.6392]
[1725020542616,4.07452,2515.2,2515.1,1.04615392]
[1725020542912,0.99384,2515.1,2514.9,3.60536]
[1725020543118,4.81143,2515.0,2514.9,3.2078]
[1725020543413,9.59452763,2515.0,2514.9,3.2078]
[1725020543613,0.39758,2514.8,2514.7,0.99978]
[1725020544021,8.60065763,2515.0,2514.9,0.39757]
[1725020544215,0.39757,2514.9,2514.8,0.39757]
[1725020545017,0.39758,2514.8,2514.7,0.99979]
[1725020547524,0.39757,2514.9,2514.8,0.39758]
[1725020547723,0.39757,2514.9,2514.7,0.99978]
[1725020547927,0.39758,2514.8,2514.7,0.99978]
[1725020550020,1.82758,2514.8,2514.7,0.99978]
[1725020550223,1.82758,2514.8,2514.7,0.6022]
[1725020550925,0.3976,2514.7,2514.6,1.1712]
[1725020551128,2.42396,2514.8,2514.5,0.39762]
[1725020551328,0.39763,2514.5,2514.4,0.98254]
[1725020552123,2.0025,2514.6,2514.5,0.39763]
[1725020552124,2.40013,2514.6,2514.5,0.39763]
[1725020552330,1.43,2514.6,2514.5,0.39763]
[1725020552628,5.11396303,2514.7,2514.6,0.39761]
[1725020552829,5.51156303,2514.7,2514.6,0.39761]
[1725020553035,5.11396303,2514.7,2514.6,0.39761]
[1725020553428,5.51156303,2514.7,2514.6,0.39761]
[1725020553727,0.39762,2514.6,2514.5,0.39762]
[1725020554133,0.39763,2514.5,2514.4,0.98253]
[1725020554932,6.5233478,2514.6,2514.5,0.39763]
[1725020555131,0.00596303,2514.7,2514.6,1.39165]
[1725020555328,3.68396303,2514.7,2514.6,1.39165]
[1725020557027,3.68396303,2514.7,2514.6,6.36249]
[1725020557227,0.00596303,2514.7,2514.6,6.36249]
[1725020558332,0.00596303,2514.7,2514.6,12.36249]
[1725020559736,0.00596303,2514.7,2514.6,6.36249]
[1725020560231,0.00596303,2514.7,2514.6,5.36845]
[1725020560424,0.00596303,2514.7,2514.6,6.36249]
[1725020562020,0.00596303,2514.7,2514.6,12.36249]
[1725020562223,3.976,2515.2,2515.1,2.38521]
[1725020562536,7.025,2515.6,2515.5,0.39747]
[1725020562846,1.00045,2515.7,2515.5,0.39747]
[1725020562847,3.44,2515.8,2515.7,0.99361]
[1725020563130,0.58566303,2516.0,2515.9,0.39741]
[1725020563428,0.00596303,2516.0,2515.9,0.39741]
[1725020564020,0.00596303,2516.0,2515.6,4.3532]
[1725020564021,8.35077782,2516.0,2515.7,0.39743]
[1725020564232,3.83743,2515.8,2515.6,4.75064]
[1725020564529,4.81477379,2515.7,2515.6,4.17764]
[1725020564732,5.43737379,2515.7,2515.6,4.17764]
[1725020565232,9.41257379,2515.7,2515.6,0.39745]
[1725020565536,9.41258379,2515.7,2515.6,0.39745]
[1725020565741,0.39745,2515.6,2515.5,0.40342303]
[1725020566031,5.43738379,2515.7,2515.5,0.00596303]
[1725020566221,4.95610081,2515.6,2515.5,0.00596303]
[1725020566621,4.95610081,2515.6,2515.5,0.40343303]
[1725020567139,0.6226,2515.7,2515.6,0.39745]
[1725020567636,3.44,2515.8,2515.7,0.39744]
[1725020569527,0.39741,2515.9,2515.8,0.39742]
[1725020570430,0.39745,2515.7,2515.5,0.00596303]
[1725020570629,3.83745,2515.7,2515.6,0.39745]
[1725020570835,4.21333367,2515.6,2515.5,0.00596303]
[1725020571028,0.39745,2515.6,2515.5,0.40342303]
[1725020571429,4.61078367,2515.6,2515.5,0.40342303]
[1725020571629,5.60442367,2515.6,2515.5,0.00596303]
[1725020571831,9.57962367,2515.6,2515.5,0.00596303]
[1725020573433,10.57326367,2515.6,2515.5,0.00596303]
[1725020574737,16.57326367,2515.6,2515.5,0.00596303]
[1725020575533,0.39755,2515.0,2514.9,3.2078]
[1725020575935,4.88474266,2515.0,2514.9,3.2078]
[1725020576441,4.48719266,2515.0,2514.9,3.60537]
[1725020576635,4.88474266,2515.0,2514.9,3.60537]
[1725020577236,4.48719266,2515.0,2514.9,3.60537]
[1725020577937,4.88474266,2515.0,2514.9,3.60537]
[1725020578437,4.88474266,2515.0,2514.9,3.2078]
[1725020578835,0.39757,2514.9,2514.8,1.01117]
[1725020579243,0.39757,2514.9,2514.8,0.39757]
[1725020579440,0.39759,2514.8,2514.7,0.39759]
[1725020580330,0.39758,2514.9,2514.8,0.39757]
[1725020581342,4.88475266,2515.0,2514.9,0.39757]
[1725020581641,0.39754,2515.1,2515.0,0.39755]
[1725020581838,3.98254,2515.1,2515.0,0.98615]
[1725020582342,3.98254,2515.1,2515.0,1.59185]
[1725020582544,3.98254,2515.1,2515.0,1.1943]
[1725020582844,0.39755,2515.0,2514.9,3.60536]
[1725020583739,0.39757,2514.9,2514.8,0.39757]
[1725020584130,1.82756,2515.0,2514.9,0.39757]
[1725020584442,0.3975,2515.4,2515.3,0.39749]
[1725020584742,5.4125,2515.4,2515.3,0.39749]
[1725020585738,5.015,2515.4,2515.3,0.39749]
[1725020586044,3.585,2515.4,2515.3,0.39749]
[1725020586543,3.98249,2515.4,2515.3,0.39749]
[1725020586840,3.585,2515.4,2515.3,0.39749]
[1725020587630,3.585,2515.4,2515.3,1.39125]
[1725020587858,3.585,2515.4,2515.3,0.39749]
[1725020588944,3.98249,2515.4,2515.3,0.39749]
[1725020589244,3.585,2515.4,2515.3,0.39749]
[1725020592135,3.59,2515.7,2515.6,0.39745]
[1725020592538,3.59,2515.7,2515.6,1.39109]
[1725020592746,0.99242,2515.9,2515.8,0.39742]
[1725020592747,4.58242,2515.9,2515.8,0.39742]
[1725020593037,4.58242,2515.9,2515.8,3.60522]
[1725020593038,9.09819545,2515.9,2515.8,3.60522]
[1725020593438,8.10577545,2515.9,2515.8,3.60522]
[1725020593744,3.59,2515.9,2515.8,7.57962]
[1725020593943,0.00596303,2516.0,2515.9,0.39741]
[1725020594238,3.59596303,2516.0,2515.9,0.99071]
[1725020595043,3.99335303,2516.0,2515.9,0.99071]
[1725020595538,3.59596303,2516.0,2515.9,0.99071]
[1725020595839,0.00596303,2516.0,2515.9,0.99071]
[1725020596031,0.00596303,2516.0,2515.9,4.96511]
[1725020596236,0.00596303,2516.0,2515.9,0.99071]
[1725020597043,0.00596303,2516.0,2515.9,5.95864]
[1725020597858,3.589,2516.3,2516.1,2.38428]
[1725020598038,3.589,2516.3,2516.2,6.78038]
[1725020598232,0.5867,2516.8,2516.7,0.39728]
[1725020598440,3.589,2516.9,2516.8,0.39727]
[1725020598641,3.98625,2516.9,2516.8,0.39727]
[1725020598853,7.42625,2516.9,2516.8,0.39727]
[1725020599144,7.029,2516.9,2516.8,0.39727]
[1725020600538,7.029,2516.9,2516.8,3.60507]
[1725020600749,0.98988303,2517.1,2516.8,3.60507]
[1725020600750,3.44596303,2517.1,2516.8,3.60507]
[1725020601041,0.00596303,2517.1,2517.0,0.39723]
[1725020601745,12.00952997,2517.1,2516.9,0.39724]
[1725020601950,8.03672997,2517.1,2516.9,0.39724]
[1725020602148,8.43395997,2517.1,2517.0,0.39723]
[1725020602446,0.00596303,2517.1,2517.0,0.39723]
[1725020602945,0.00596303,2517.1,2516.9,3.60504]
[1725020603349,0.39723,2517.0,2516.9,3.2078]
[1725020603549,0.39723,2517.0,2516.8,0.6166]
[1725020603550,7.95318667,2517.0,2516.8,0.6166]
[1725020603749,7.95318667,2517.0,2516.9,3.2078]
[1725020604047,3.44,2517.0,2516.9,3.60505]
[1725020604245,3.44,2517.0,2516.9,3.2078]
[1725020604450,0.00596303,2517.1,2516.9,3.2078]
[1725020604650,0.40318303,2517.1,2516.9,3.2078]
[1725020604951,27.4,2517.0,2516.9,3.60505]
[1725020605251,31.62927177,2517.0,2516.9,3.60505]
[1725020605454,0.40318303,2517.1,2516.9,3.60505]
[1725020605654,0.39723,2517.0,2516.8,0.39726]
[1725020605850,0.39727,2516.8,2516.7,3.7838]
[1725020606151,0.39728,2516.7,2516.6,7.32076303]
[1725020606942,0.39728,2516.7,2516.6,4.11296303]
[1725020607141,0.98228,2516.7,2516.6,4.11296303]
[1725020607350,8.03736825,2516.8,2516.6,4.51025303]
[1725020607658,8.03736825,2516.8,2516.6,0.40325303]
[1725020607659,3.83728,2516.8,2516.6,0.40325303]
[1725020607845,4.58831986,2516.7,2516.6,0.40325303]
[1725020609055,4.98559986,2516.7,2516.6,0.40325303]
[1725020609243,4.98559986,2516.7,2516.6,0.00596303]
[1725020610254,4.98559986,2516.7,2516.6,0.40326303]
[1725020610450,4.98559986,2516.7,2516.6,0.00596303]
[1725020611260,4.98559986,2516.7,2516.6,0.40326303]
[1725020611448,4.58831986,2516.7,2516.6,0.40326303]
[1725020611755,3.588,2516.8,2516.7,0.39728]
[1725020611951,3.588,2516.8,2516.7,5.98269]
[1725020612148,3.588,2516.8,2516.7,12.60859]
[1725020612551,3.588,2516.8,2516.7,6.60859]
[1725020613959,3.588,2516.8,2516.7,13.6018]
[1725020614460,0.00596303,2517.1,2517.0,1.39032]
[1725020614953,0.00596303,2517.1,2517.0,5.36312]
[1725020615660,0.00596303,2517.1,2517.0,15.79621]
[1725020615847,3.975,2517.5,2517.4,1.3901]
[1725020616050,0.6199,2518.0,2517.9,0.39709]
[1725020616252,0.5846,2518.2,2517.9,0.39709]
[1725020616753,4.28372945,2518.1,2517.9,0.39709]
[1725020616953,4.68078945,2518.1,2517.8,0.3971]
[1725020617152,4.68078945,2518.1,2517.7,0.39711]
[1725020617153,0.39708,2518.0,2517.7,0.39711]
[1725020617359,0.39708,2518.0,2517.5,0.5885]
[1725020617360,4.28372945,2518.1,2517.5,4.0285]
[1725020617559,4.21286303,2518.3,2518.1,0.39705]
[1725020617753,4.60989303,2518.3,2518.0,0.39707]
[1725020617950,4.15878855,2518.2,2518.0,0.39707]
[1725020618859,4.15878855,2518.2,2517.9,0.00596303]
[1725020618860,0.62586303,2518.3,2517.9,0.00596303]
[1725020619063,0.62586303,2518.3,2518.2,0.39704]
[1725020619064,0.00596303,2518.3,2518.2,0.39704]
[1725020619254,0.00596303,2518.3,2518.2,4.36824]
[1725020619450,0.00596303,2518.3,2518.2,10.36824]
[1725020619649,0.00596303,2518.3,2518.2,10.93954]
[1725020620051,0.00596303,2518.3,2518.2,11.93216]
[1725020620260,0.00596303,2518.3,2518.2,10.93954]
[1725020621859,3.973,2518.9,2518.8,0.39695]
[1725020622063,4.2015,2519.1,2518.8,0.39695]
[1725020622363,4.39996245,2519.0,2518.6,0.39697]
[1725020622569,0.39694,2518.9,2518.5,0.397]
[1725020623061,0.39696,2518.8,2518.4,7.71181]
[1725020623565,0.39694,2518.9,2518.5,0.397]
[1725020623768,8.24285548,2519.0,2518.5,0.397]
[1725020623965,0.39693,2518.9,2518.5,0.397]
[1725020625373,7.84592548,2519.0,2518.4,7.3148]
[1725020625674,8.24284548,2519.0,2518.7,3.2078]
[1725020626574,0.39694,2518.9,2518.7,3.2078]
[1725020626759,0.39695,2518.8,2518.7,3.2078]
[1725020626960,4.70300931,2518.8,2518.7,3.2078]
[1725020627268,0.39698,2518.6,2518.4,4.107]
[1725020627660,4.85168783,2518.5,2518.4,4.107]
[1725020627860,5.72638783,2518.5,2518.4,4.107]
[1725020628072,1.6687,2518.5,2518.4,4.107]
[1725020628871,1.2717,2518.5,2518.4,4.107]
[1725020629261,3.2078,2518.6,2518.4,4.107]
[1725020629564,1.02606,2518.8,2518.5,0.39699]
[1725020629968,27.79697,2518.7,2518.5,0.39699]
[1725020630172,27.4,2518.7,2518.5,0.39699]
[1725020630667,27.79697,2518.7,2518.5,0.39699]
[1725020631064,0.39697,2518.7,2518.5,0.39699]
[1725020631662,0.39697,2518.7,2518.4,0.397]
[1725020632171,0.39698,2518.6,2518.4,0.397]
[1725020632374,0.39701,2518.4,2518.2,3.2078]
[1725020632674,0.39701,2518.5,2518.2,3.60484]
[1725020632871,0.39701,2518.4,2518.2,3.60484]
[1725020633067,1.01981,2518.4,2518.2,3.2078]
[1725020633378,0.39703,2518.3,2518.2,3.2078]
[1725020633576,5.31356681,2518.3,2518.2,3.2078]
[1725020635075,5.31356681,2518.3,2518.1,4.21066]
[1725020635463,5.31356681,2518.3,2518.1,3.8136]
[1725020635669,0.39702,2518.4,2518.2,0.39704]
[1725020635968,1.01542,2518.4,2518.2,0.39704]
[1725020637177,0.6184,2518.4,2518.1,3.8136]
[1725020637374,0.39702,2518.4,2518.2,0.39704]
[1725020637581,0.611,2518.5,2518.1,3.2078]
[1725020637771,0.39704,2518.2,2518.1,3.2078]
[1725020639076,0.39703,2518.3,2518.1,3.2078]
[1725020639474,4.53308616,2518.3,2518.1,3.2078]
[1725020639873,0.39703,2518.3,2518.1,3.2078]
[1725020640168,0.39703,2518.3,2518.2,0.39704]
[1725020640477,0.39703,2518.3,2518.1,3.2078]
[1725020640478,1.38966,2518.2,2518.1,3.2078]
[1725020640680,2.57976,2518.2,2518.1,3.2078]
[1725020640986,0.39708,2518.0,2517.9,0.00596303]
[1725020641169,1.38978,2518.0,2517.9,0.00596303]
[1725020641370,0.39716,2517.5,2517.2,3.2078]
[1725020641674,3.2078,2518.1,2517.5,0.99289]
[1725020641876,0.6103,2518.2,2517.8,0.99278]
[1725020642184,0.99273,2518.3,2518.1,0.39705]
[1725020642375,8.2156,2518.5,2517.9,5.07079303]
[1725020642580,9.20666303,2518.5,2518.3,0.39702]
[1725020642773,9.20666303,2518.5,2517.9,5.07079303]
[1725020642774,9.20666303,2518.5,2518.0,0.5879]
[1725020642976,9.20666303,2518.5,2518.3,0.39702]
[1725020643482,9.20666303,2518.5,2518.2,0.39704]
[1725020643483,0.39701,2518.4,2518.2,0.39704]
[1725020643784,8.80966303,2518.5,2518.0,0.5879]
[1725020643986,0.39702,2518.4,2518.2,0.39704]
[1725020644175,9.20666303,2518.5,2518.3,0.39702]
[1725020644777,8.80966303,2518.5,2518.4,0.39701]
[1725020645672,5.16266303,2518.5,2518.4,0.39701]
[1725020645886,3.97696303,2518.5,2518.4,0.39701]
[1725020646476,4.37397303,2518.5,2518.3,0.39703]
[1725020646672,4.37397303,2518.5,2518.1,3.7897]
[1725020646673,3.97696303,2518.5,2518.1,3.7897]
[1725020646886,3.97696303,2518.5,2518.4,0.39701]
[1725020647182,3.97696303,2518.5,2518.1,3.7897]
[1725020647383,3.97696303,2518.5,2518.4,0.39701]
[1725020648287,4.37396303,2518.5,2518.3,0.39702]
[1725020648487,8.16547998,2518.5,2518.0,0.5879]
[1725020648683,0.39703,2518.3,2518.1,0.39705]
[1725020648881,0.5954,2518.2,2518.1,0.39705]
[1725020650284,0.5954,2518.2,2518.0,0.5879]
[1725020650590,0.5954,2518.2,2517.9,0.40304303]
[1725020650591,0.39707,2518.1,2517.9,0.40304303]
[1725020650785,0.39707,2518.1,2517.9,0.98884303]
[1725020651180,0.39708,2518.0,2517.9,0.59176303]
[1725020651681,4.89258768,2518.2,2517.9,4.56296303]
[1725020651882,0.39706,2518.2,2518.1,0.39706]
[1725020652685,0.39706,2518.1,2517.9,0.59176303]
[1725020652979,0.39706,2518.1,2517.9,0.98884303]
[1725020653182,0.39708,2518.0,2517.9,0.59176303]
[1725020653786,1.00168,2518.0,2517.9,0.59176303]
[1725020654383,10.0895723,2518.0,2517.6,4.107]
[1725020654579,10.0895723,2518.0,2517.5,0.39715]
[1725020654580,0.39714,2517.6,2517.5,0.39715]
[1725020655993,0.9929,2517.5,2517.3,0.00596303]
[1725020656196,0.39717,2517.4,2517.3,0.00596303]
[1725020656995,1.3901,2517.4,2517.3,0.00596303]
[1725020657199,2.6024,2517.4,2517.3,0.00596303]
[1725020658196,7.56813,2517.4,2517.3,0.00596303]
[1725020658396,0.39727,2516.8,2516.7,3.2119]
[1725020658698,0.99307,2517.1,2516.7,4.01501405]
[1725020658699,0.39726,2516.9,2516.7,4.01501405]
[1725020658995,1.39039,2516.9,2516.8,0.40583405]
[1725020659193,0.39727,2516.8,2516.7,3.2119]
[1725020659793,0.00596303,2517.0,2516.9,0.39725]
[1725020659994,0.00596303,2517.0,2516.9,0.80318007]
[1725020660496,0.00596303,2517.0,2516.9,0.39725]
[1725020660897,0.00596303,2517.0,2516.9,4.37005]
[1725020661090,0.00596303,2517.0,2516.9,4.77586306]
[1725020661597,0.00596303,2517.0,2516.9,5.38626306]
[1725020662392,0.00596303,2517.0,2516.9,4.98045]
[1725020662602,0.00596303,2517.0,2516.9,5.38627746]
[1725020662805,0.00596303,2517.0,2516.9,5.59605]
[1725020662994,0.00596303,2517.0,2516.9,6.00184618]
[1725020663194,0.00596303,2517.0,2516.9,6.40766984]
[1725020663389,0.00596303,2517.0,2516.9,6.00184618]
[1725020663595,0.00596303,2517.0,2516.9,6.00187322]
[1725020664289,0.00596303,2517.0,2516.9,5.59605]
[1725020665701,0.00596303,2517.0,2516.9,1.01285]
[1725020665904,0.00596303,2517.0,2516.9,0.39725]
[1725020666205,0.62446303,2517.0,2516.9,0.39725]
[1725020666601,0.39727,2516.8,2516.7,3.60917]
[1725020666794,0.39726,2516.9,2516.7,3.60917]
[1725020667003,0.39726,2516.9,2516.8,0.39727]
[1725020667208,0.62446303,2517.0,2516.9,0.39725]
[1725020667209,1.02170303,2517.0,2516.9,0.39725]
[1725020667396,1.02170303,2517.0,2516.8,0.39725]
[1725020667706,0.39725,2516.9,2516.8,0.39725]
[1725020667900,0.39727,2516.8,2516.7,3.60917]
[1725020668101,0.39727,2516.8,2516.7,3.2119]
[1725020668102,1.39044,2516.8,2516.7,3.2119]
[1725020668307,5.36404,2516.8,2516.7,3.2119]
[1725020670203,0.39727,2516.8,2516.7,3.60918]
[1725020671705,0.39726,2516.9,2516.8,0.39726]
[1725020671902,0.00596303,2517.0,2516.9,0.39725]
[1725020672103,0.00596303,2517.0,2516.9,2.38351]
[1725020672301,0.00596303,2517.0,2516.9,6.35631]
[1725020672503,0.00596303,2517.0,2516.9,5.36318]
[1725020675611,0.00596303,2517.0,2516.9,6.35631]
[1725020679414,0.00235121,2517.0,2516.9,6.35631]
[1725020680214,0.00235121,2517.0,2516.9,4.37005]
[1725020681516,0.00235121,2517.0,2516.9,5.36318]
[1725020682218,0.00235121,2517.0,2516.9,6.76202131]
[1725020682914,0.00235121,2517.0,2516.9,6.35631]
[1725020683113,0.00235121,2517.0,2516.9,6.76199103]
[1725020683421,0.00235121,2517.0,2516.9,6.76199521]
[1725020686317,0.00235121,2517.0,2516.9,6.35631]
[1725020686516,0.00235121,2517.0,2516.9,6.76202332]
[1725020686718,0.00235121,2517.0,2516.9,4.77576332]
[1725020686913,0.00235121,2517.0,2516.9,0.39725]
[1725020687115,1.18385121,2517.0,2516.9,0.39725]
[1725020687314,1.58108121,2517.0,2516.9,4.37005]
[1725020687514,1.18385121,2517.0,2516.9,4.37005]
[1725020688026,0.61605121,2517.0,2516.9,4.37005]
[1725020689419,0.61605121,2517.0,2516.9,0.39725]
[1725020689824,1.01328121,2517.0,2516.9,0.39725]
[1725020690026,0.61605121,2517.0,2516.7,3.21145164]
[1725020690227,0.39726,2516.9,2516.8,0.39727]
[1725020690525,0.39727,2516.8,2516.7,3.60872164]
[1725020692820,0.39727,2516.8,2516.7,3.21145164]
[1725020693020,4.37087,2516.8,2516.7,3.21145164]
[1725020693720,0.39726,2516.9,2516.7,3.60873164]
[1725020693928,0.39727,2516.8,2516.7,3.60873164]
[1725020694128,4.31122644,2516.8,2516.7,3.60873164]
[1725020694429,4.70848644,2516.9,2516.7,4.01479168]
[1725020694629,0.39726,2516.9,2516.7,3.60873164]
[1725020694832,4.26712307,2516.8,2516.7,3.60873164]
[1725020695026,4.66439307,2516.8,2516.7,3.60873164]
[1725020695227,4.26712307,2516.8,2516.7,4.01481817]
[1725020695730,0.39726,2516.9,2516.8,0.39727]
[1725020696230,0.39726,2516.9,2516.7,3.60872164]
[1725020696827,1.01330121,2517.0,2516.8,0.39726]
[1725020697028,1.01330121,2517.0,2516.9,0.39725]
[1725020697229,0.39725,2516.9,2516.8,0.39725]
[1725020697432,0.39725,2516.9,2516.8,0.80328952]
[1725020698222,8.76757476,2516.9,2516.8,0.40603952]
[1725020699325,8.76757476,2516.9,2516.8,0.80336147]
[1725020700230,9.76070476,2516.9,2516.8,0.40609147]
[1725020700444,8.76757476,2516.9,2516.8,0.40609147]
[1725020700642,0.61605121,2517.0,2516.8,0.40609147]
[1725020700643,1.01329121,2517.0,2516.9,0.39725]
[1725020700853,3.973,2517.6,2517.4,0.39717]
[1725020701042,0.5877,2517.4,2517.3,0.39719]
[1725020701340,0.5877,2517.4,2517.3,0.80307403]
[1725020701543,0.5877,2517.4,2517.3,0.39719]
[1725020701749,0.5877,2517.4,2517.3,0.80303274]
[1725020702145,0.98487,2517.4,2517.3,0.40584274]
[1725020702342,1.9778,2517.4,2517.3,0.40584274]
[1725020702942,0.5877,2517.4,2517.3,0.80303274]
[1725020703452,0.98487,2517.4,2517.3,0.80303274]
[1725020703639,0.5877,2517.4,2517.3,0.80303274]
[1725020704850,4.06011303,2517.6,2517.4,0.39716]
[1725020705051,1.1575,2517.5,2517.4,0.39716]
[1725020705248,1.55465,2517.5,2517.4,0.40581429]
[1725020705642,1.55465,2517.5,2517.4,0.80298429]
[1725020706348,1.1575,2517.5,2517.4,0.80298429]
[1725020706652,1.55465,2517.5,2517.4,0.80298429]
[1725020708050,1.55465,2517.5,2517.4,0.80297526]
[1725020708761,1.55465,2517.5,2517.4,0.40580526]
[1725020709645,1.55465,2517.5,2517.4,0.80297526]
[1725020710854,0.39715,2517.5,2517.4,0.80297526]
[1725020711155,1.59695,2517.5,2517.4,0.80297526]
[1725020711458,1.1998,2517.5,2517.4,0.80298966]
[1725020711658,0.00596303,2517.6,2517.5,0.39715]
[1725020711949,0.00596303,2517.6,2517.5,2.35585966]
[1725020712347,0.00596303,2517.6,2517.5,6.32785966]
[1725020713546,0.39702,2518.4,2518.2,0.39704]
[1725020713746,3.2078,2518.5,2518.4,0.39701]
[1725020714555,3.2078,2518.5,2518.2,1.58890303]
[1725020714754,0.39703,2518.3,2518.2,0.97840303]
[1725020715152,1.38961,2518.3,2518.2,0.00596303]
[1725020715454,8.49885192,2518.3,2518.2,0.00596303]
[1725020715659,0.39703,2518.3,2518.2,0.00596303]
[1725020715859,0.96471,2518.4,2518.3,0.39703]
[1725020716252,4.72717223,2518.3,2518.2,0.00596303]
[1725020716757,5.36081,2518.3,2518.2,0.00596303]
[1725020716961,9.69095223,2518.3,2518.2,0.00596303]
[1725020718661,4.72717223,2518.3,2518.2,0.00596303]
[1725020718868,4.36823,2518.3,2518.2,0.00596303]
[1725020719166,8.87056752,2518.3,2518.2,0.00596303]
[1725020719556,4.89936752,2518.3,2518.2,0.40300303]
[1725020720451,5.89194752,2518.3,2518.2,0.00596303]
[1725020721057,9.86314752,2518.3,2518.2,0.00596303]
[1725020721660,13.51914752,2518.3,2518.2,0.00596303]
[1725020722261,12.52656752,2518.3,2518.2,0.00596303]
[1725020722559,8.55536752,2518.3,2518.2,0.40300303]
[1725020725664,8.55536752,2518.3,2518.2,0.00596303]
[1725020725868,9.54794752,2518.3,2518.2,0.00596303]
[1725020728265,13.51914752,2518.3,2518.2,0.00596303]
[1725020728473,20.51172752,2518.3,2518.2,0.00596303]
[1725020728865,13.51914752,2518.3,2518.2,0.00596303]
[1725020729764,14.51172752,2518.3,2518.2,0.00596303]
[1725020730361,20.51172752,2518.3,2518.2,0.00596303]
[1725020731165,23.71952752,2518.3,2518.2,0.00596303]
[1725020731370,20.51172752,2518.3,2518.2,0.00596303]
[1725020731867,19.51914752,2518.3,2518.2,0.00596303]
[1725020732171,9.54794752,2518.3,2518.2,0.00596303]
[1725020732370,8.55536752,2518.3,2518.2,0.40300303]
[1725020733575,8.55536752,2518.3,2518.2,1.58390303]
[1725020737258,8.15833752,2518.3,2518.2,1.58390303]
[1725020737461,8.55536752,2518.3,2518.2,1.58390303]
[1725020737862,4.89936752,2518.3,2518.2,1.58390303]
[1725020739066,4.89936752,2518.3,2518.2,1.18686303]
[1725020739269,4.89936752,2518.3,2518.2,0.00596303]
[1725020739669,4.89936752,2518.3,2518.2,0.40300303]
[1725020741873,9.86314752,2518.3,2518.2,0.00596303]
[1725020742072,9.86314752,2518.3,2518.2,0.40300303]
[1725020742279,4.89936752,2518.3,2518.2,0.40300303]
[1725020742584,0.39703,2518.3,2518.2,0.40300303]
[1725020742769,3.574,2518.4,2518.3,0.39703]
[1725020743074,3.57996303,2518.7,2518.6,0.39698]
[1725020743277,3.97693303,2518.7,2518.6,0.39698]
[1725020743471,3.97693303,2518.7,2518.5,0.39699]
[1725020743472,0.39699,2518.6,2518.5,0.39699]
[1725020744074,0.397,2518.5,2518.4,0.5885]
[1725020744673,0.397,2518.5,2518.4,4.5589]
[1725020744880,0.397,2518.5,2518.4,0.5885]
[1725020745074,0.397,2518.5,2518.4,0.9855]
[1725020745674,1.3895,2518.5,2518.4,0.39701]
[1725020745880,2.5743,2518.5,2518.4,0.39701]
[1725020746276,1.5818,2518.5,2518.4,0.39701]
[1725020747883,0.397,2518.5,2518.4,0.39701]
[1725020752276,0.39703,2518.3,2518.2,0.40300303]
[1725020752584,1.38961,2518.3,2518.2,0.00596303]
[1725020752882,1.95971,2518.3,2518.2,0.00596303]
[1725020753089,1.95971,2518.3,2518.2,0.40300303]
[1725020753284,0.96713,2518.3,2518.2,0.40300303]
[1725020753588,0.39703,2518.3,2518.2,0.40300303]
[1725020754383,1.38961,2518.3,2518.2,0.00596303]
[1725020754687,1.38961,2518.3,2518.2,0.58856303]
[1725020755484,1.38961,2518.3,2518.2,0.98560303]
[1725020755677,1.97071,2518.3,2518.2,4.19340303]
[1725020755881,1.97071,2518.3,2518.2,3.79636303]
[1725020756085,1.97071,2518.3,2518.2,0.58856303]
[1725020756578,1.97071,2518.3,2518.2,0.98560303]
[1725020757283,5.94191,2518.3,2518.2,0.00596303]
[1725020757493,11.51731347,2518.3,2518.2,0.00596303]
[1725020760292,17.51731347,2518.3,2518.2,0.00596303]
[1725020760487,17.51731347,2518.3,2517.7,0.39711]
[1725020760488,0.39711,2517.8,2517.7,0.39711]
[1725020760689,0.99273,2518.0,2517.9,0.39709]
[1725020760690,0.39709,2518.0,2517.9,0.39709]
[1725020760896,0.39709,2518.0,2517.9,0.80221559]
[1725020761287,0.39709,2518.0,2517.9,0.40512559]
[1725020761492,0.39709,2518.0,2517.6,1.66020729]
[1725020761493,0.39712,2517.8,2517.7,0.40307303]
[1725020761694,0.39712,2517.8,2517.7,0.80821982]
[1725020761892,1.6373,2517.9,2517.8,0.39711]
[1725020762095,1.6373,2517.9,2517.8,0.80225279]
[1725020762287,1.6373,2517.9,2517.8,0.40514279]
[1725020762487,0.39711,2517.8,2517.7,0.00596303]
[1725020762688,1.38989,2517.8,2517.7,0.41118581]
[1725020764208,1.38989,2517.8,2517.7,0.00596303]
[1725020766202,1.38989,2517.8,2517.7,0.40308303]
[1725020766797,0.39711,2517.8,2517.7,0.40308303]
[1725020768896,0.39711,2517.8,2517.7,0.80831682]
[1725020769096,0.39711,2517.8,2517.7,0.00596303]
[1725020769391,0.39708,2518.0,2517.9,0.39708]
[1725020769707,4.08308,2518.0,2517.9,0.39708]
[1725020770292,0.3971,2517.9,2517.8,0.39709]
[1725020770499,0.3971,2517.9,2517.8,0.80242378]
[1725020770803,0.3971,2517.9,2517.8,0.39709]
[1725020771398,3.686,2518.0,2517.9,0.39709]
[1725020771600,3.686,2518.0,2517.9,0.80239722]
[1725020771791,3.686,2518.0,2517.9,0.39709]
[1725020771997,6.8938,2518.2,2517.9,5.369211]
[1725020772207,6.8938,2518.2,2518.1,0.39706]
[1725020772405,3.686,2518.2,2518.1,0.39706]
[1725020772907,3.686,2518.2,2518.1,0.80226502]
[1725020773407,4.08304,2518.2,2518.1,0.39706]
[1725020774497,0.39706,2518.1,2518.0,1.56677]
[1725020774699,0.98996,2518.1,2518.0,1.56677]
[1725020775204,0.98996,2518.1,2518.0,5.53797]
[1725020775403,0.98996,2518.1,2518.0,1.97197638]
[1725020775599,0.98996,2518.1,2518.0,5.94317638]
[1725020775801,4.08306,2518.2,2518.1,0.39706]
[1725020777708,4.08306,2518.2,2518.1,0.80230116]
[1725020778112,3.686,2518.2,2518.1,0.80230116]
[1725020778415,3.6048,2518.6,2518.5,0.397]
[1725020778611,3.2078,2518.6,2518.5,0.397]
[1725020778909,0.00596303,2518.7,2518.6,0.39698]
[1725020779104,0.00596303,2518.7,2518.6,0.93628]
[1725020779705,0.00596303,2518.7,2518.6,1.34123591]